[Event "3rd Avagyan Memorial 2022"]
[Site "Jermuk"]
[Date "2022.06.26"]
[Round "7.2"]
[White "Nguyen, Thai Dai Van"]
[Black "Nihal Sarin"]
[Result "1/2-1/2"]
[ECO "E04"]
[WhiteElo "2612"]
[BlackElo "2646"]
[Annotator "TA"]
[PlyCount "99"]
[EventDate "2022.06.20"]
[EventType "tourn"]
[EventCountry "ARM"]
[SourceTitle "playchess.com"]
[Source "ChessBase"]
[SourceQuality "1"]
[TimeControl "40/5400+30:1800+30"]

{[%evp 13,99,33,30,41,57,61,58,54,49,50,59,68,93,82,81,75,74,60,62,51,50,53,58,61,60,50,53,34,52,45,50,33,33,33,33,33,33,33,33,33,33,28,37,37,37,37,37,37,60,60,62,16,16,8,16,8,8,8,8,8,8,8,8,8,8,8,8,8,16,0,0,0,0,0,16,0,0,0,0,0,0,0,0,0,0,0,0,0]} 1. d4 {[%emt 0:00:02]} d5 {[%emt 0:04:00]} 2. c4 {[%emt 0:00:11]} e6 {[%emt 0:00:05]} 3. Nf3 {[%emt 0:00:16]} Nf6 {[%emt 0:00:04]} 4. g3 {[%emt 0:00:06]} dxc4 {[%emt 0:00:11]} 5. Bg2 {[%emt 0:00:09]} Nbd7 {[%emt 0:00:05]} 6. O-O {[%emt 0:01:25]} c6 {[%emt 0:00:26] is now debated instead of 6...c5.} 7. a4 {[%emt 0:04:58]} a5 {[%emt 0:00:14]} 8. Qc2 {[%emt 0:01:38] E04: Open Catalan: 5 Nf3.} b5 {[%emt 0:00:28]} 9. axb5 {[%emt 0:03:01]} cxb5 {[%emt 0:00:09]} 10. Ne5 {[%emt 0:00:15] White is slightly better.} Nd5 {[%emt 0:00:56]} 11. Nc3 $1 {[%emt 0:00:06]} Nxe5 {[%emt 0:00:20]} 12. dxe5 {[%emt 0:00:05]} Qb6 {[%emt 0:00:05]} 13. Nxd5 {[%emt 0:00:07]} exd5 {[%emt 0:00:09]} 14. Bxd5 {[%emt 0:00:08]} Ra7 {[%emt 0:00:03] [#]} 15. Qe4 $146 {[%emt 0:06:46] [#] Strongly threatening Rd1. White is more active.} ({Predecessor:} 15. b3 Bc5 16. bxc4 b4 17. Qe4 O-O 18. Kg2 b3 19. Bb2 a4 20. Ra3 Qh6 21. Rd1 {½-½ (55) Gelfand,B (2663)-Erigaisi,A (2629) Warsaw 2021}) 15... Bc5 {[%emt 0:00:32]} 16. Bc6+ $1 {[%emt 0:00:04]} Bd7 {[%emt 0:00:05]} 17. Bxd7+ {[%emt 0:00:04]} Rxd7 {[%emt 0:00:05]} 18. Qa8+ {[%emt 0:00:09]} Rd8 {[%emt 0:00:05]} 19. Qxa5 {[%emt 0:00:16]} Qc6 {[%emt 0:01:12]} 20. Qa6 {[%emt 0:11:22]} Qxa6 {[%emt 0:01:24]} 21. Rxa6 {[%emt 0:00:09]} Kd7 {[%emt 0:00:05]} 22. Be3 {[%emt 0:15:32]} Bxe3 {[%emt 0:00:43]} 23. fxe3 $14 {[%emt 0:01:11][%mdl 4096] Endgame KRR-KRR} Rhf8 {[%emt 0:00:05]} 24. Rb6 {[%emt 0:02:51]} Ke7 {[%emt 0:04:16]} 25. Ra1 {[%emt 0:11:13]} Ra8 {[%emt 0:00:22]} 26. Rxa8 {[%emt 0:00:05]} Rxa8 {[%emt 0:00:04]} 27. Rxb5 {[%emt 0:00:11] KR-KR} Rc8 {[%emt 0:22:01]} 28. Kf2 {[%emt 0:00:09]} c3 {[%emt 0:00:18]} 29. bxc3 {[%emt 0:00:05]} Rxc3 {[%emt 0:00:03]} 30. Kf3 {[%emt 0:00:07]} Ke6 {[%emt 0:10:58]} 31. h4 {[%emt 0:01:10]} Rc1 {[%emt 0:37:11]} 32. g4 {[%emt 0:04:45]} (32. Rb8 $14 {was preferrable.}) 32... Rh1 $11 {[%emt 0:03:30] The position is equal.} 33. h5 {[%emt 0:00:56]} g6 {[%emt 0:01:23]} 34. Kg2 {[%emt 0:02:23]} Rh4 {[%emt 0:01:11]} 35. Kg3 {[%emt 0:00:05]} Rh1 {[%emt 0:00:03]} 36. hxg6 {[%emt 0:01:27]} hxg6 {[%emt 0:01:18]} 37. Kf4 {[%emt 0:00:09]} Rf1+ {[%emt 0:04:39]} 38. Ke4 {[%emt 0:01:03]} Rg1 {[%emt 0:04:10]} 39. Rb6+ {[%emt 0:01:25]} Ke7 {[%emt 0:00:06]} 40. Kf4 {[%emt 0:00:00]} Rg2 {[%emt 0:00:00]} 41. Rf6 {[%emt 0:29:54]} Rxe2 {[%emt 0:10:28]} 42. g5 {[%emt 0:00:04]} Rf2+ {[%emt 0:00:08]} 43. Ke4 {[%emt 0:01:29]} Rg2 {[%emt 0:00:32]} 44. Kf4 {[%emt 0:00:11]} Rf2+ {[%emt 0:00:05]} 45. Kg3 {[%emt 0:00:05]} Rf5 {[%emt 0:00:12]} 46. Rxf5 {[%emt 0:00:13]} gxf5 {[%emt 0:00:06]} 47. Kf3 {[%emt 0:01:52]} Kd7 {[%emt 0:00:07]} 48. Kf4 {[%emt 0:02:29]} Ke6 {[%emt 0:00:07]} 49. e4 {[%emt 0:00:01]} fxe4 {[%emt 0:00:05]} 50. Kxe4 {[%emt 0:00:03] Weighted Error Value: White=0.03 (flawless) /Black=0.03 (flawless)} 1/2-1/2

[Event "3rd Avagyan Memorial 2022"]
[Site "Jermuk"]
[Date "2022.06.26"]
[Round "7.3"]
[White "Tabatabaei, M. Amin"]
[Black "Gharibyan, Mamikon"]
[Result "1-0"]
[ECO "B30"]
[WhiteElo "2650"]
[BlackElo "2487"]
[Annotator "TA"]
[PlyCount "49"]
[EventDate "2022.06.20"]
[EventType "tourn"]
[EventCountry "ARM"]
[SourceTitle "playchess.com"]
[Source "ChessBase"]
[SourceQuality "1"]
[TimeControl "40/5400+30:1800+30"]

{[%evp 9,49,4,32,20,14,12,10,14,14,22,22,14,15,15,23,22,21,11,11,18,12,12,47,57,46,48,69,75,70,85,273,277,283,281,295,293,303,281,563,577,638,551]} 1. e4 {[%emt 0:01:38]} c5 {[%emt 0:00:14]} 2. Nf3 {[%emt 0:00:12]} Nc6 {[%emt 0:00:08]} 3. Bc4 {[%emt 0:00:09]} e6 {[%emt 0:03:21]} 4. O-O {[%emt 0:00:24]} Nf6 {[%emt 0:04:19]} 5. Re1 {[%emt 0:00:17]} d6 {[%emt 0:07:44]} (5... Nxe4 $5 6. Rxe4 d5 7. Bxd5 Qxd5 $11) 6. Bf1 {[%emt 0:01:08] B30: Sicilian: 2...Nc6 3 Bb5, lines without ...g6.} Be7 {[%emt 0:07:11]} 7. c3 {[%emt 0:00:18]} e5 {[%emt 0:03:14]} 8. d4 {[%emt 0:00:33] The position is equal.} cxd4 {[%emt 0:02:04]} 9. cxd4 {[%emt 0:00:06]} Bg4 {[%emt 0:01:04] [#]} 10. Be3 $146 {[%emt 0:00:07]} ({Predecessor:} 10. d5 Nd4 11. Be3 Nxf3+ 12. gxf3 Bd7 13. Qb3 b6 14. Nd2 O-O 15. Bb5 Bxb5 16. Qxb5 {1-0 (28) Sevian,S (2667)-Solberg,J (2181) Helsingor 2019}) 10... exd4 {[%emt 0:11:52]} (10... Nxe4 $2 11. d5 $18) 11. Bxd4 {[%emt 0:00:07]} O-O {[%emt 0:00:53]} 12. Nc3 {[%emt 0:00:08]} Nxd4 {[%emt 0:11:08]} 13. Qxd4 {[%emt 0:00:10]} Bxf3 {[%emt 0:00:04]} 14. gxf3 {[%emt 0:00:11]} Qa5 {[%emt 0:00:03]} 15. f4 {[%emt 0:00:09] Prevents Qg5+.} Bd8 {[%emt 0:02:39]} 16. Qxd6 {[%emt 0:33:41]} Bc7 {[%emt 0:25:07]} 17. Qd2 {[%emt 0:00:03]} Qh5 {[%emt 0:06:42]} 18. e5 $1 {[%emt 0:04:51][%cal Be4e5,Be5f6,Bf6g7][%mdl 32]} Rad8 {[%emt 0:03:39]} 19. Qe2 {[%emt 0:02:11]} Qf5 {[%emt 0:04:12] This costs Black the game.} (19... Qxe2 $16 20. Rxe2 (20. Bxe2 Nd5 $14) 20... Nd5) 20. exf6 $18 {[%emt 0:01:31]} Qxf4 {[%emt 0:00:16][%csl Gc7][%cal Rf4h2] [#]} 21. Bg2 {[%emt 0:00:57]} Rd2 {[%emt 0:02:40]} 22. Qf3 {[%emt 0:03:16]} Qxh2+ {[%emt 0:00:10]} 23. Kf1 {[%emt 0:00:01] Threatens to win with fxg7.} Bb6 $2 {[%emt 0:01:42]} (23... Qf4 {was called for.} 24. Nd5 Qxf3 25. Bxf3 Bd8 26. fxg7 Kxg7) 24. Ne4 {[%emt 0:00:23]} Rxb2 {[%emt 0:00:08]} 25. fxg7 {[%emt 0:00:41] Weighted Error Value: White=0.01 (flawless) /Black=0.30} 1-0

[Event "3rd Avagyan Memorial 2022"]
[Site "Jermuk"]
[Date "2022.06.26"]
[Round "7.4"]
[White "Ter-Sahakyan, Samvel"]
[Black "Sargsyan, Shant"]
[Result "1/2-1/2"]
[ECO "E16"]
[WhiteElo "2640"]
[BlackElo "2641"]
[Annotator "TA"]
[PlyCount "100"]
[EventDate "2022.06.20"]
[EventType "tourn"]
[EventCountry "ARM"]
[SourceTitle "playchess.com"]
[Source "ChessBase"]
[SourceQuality "1"]
[TimeControl "40/5400+30:1800+30"]

{[%evp 14,100,18,13,25,9,0,0,0,0,0,0,7,0,0,8,9,0,44,0,13,0,43,57,59,54,58,52,62,59,61,61,78,78,88,72,71,72,73,70,73,72,72,83,96,95,105,0,88,0,107,106,103,101,105,106,101,102,99,100,112,112,119,72,71,81,72,52,57,29,25,2,2,2,2,2,3,2,2,0,2,2,2,0,0,0,10,0,0]} 1. d4 {[%emt 0:00:06]} Nf6 {[%emt 0:02:48]} 2. c4 {[%emt 0:00:12]} e6 {[%emt 0:00:59]} 3. Nf3 {[%emt 0:00:16]} d5 {[%emt 0:00:18]} 4. g3 {[%emt 0:00:05]} Bb4+ {[%emt 0:01:41]} 5. Nbd2 {[%emt 0:00:11]} O-O {[%emt 0:01:15]} 6. Bg2 {[%emt 0:00:15]} b6 {[%emt 0:00:20]} 7. O-O {[%emt 0:00:10]} Bb7 {[%emt 0:00:06]} 8. Ne5 {[%emt 0:00:53]} Nc6 {[%emt 0:00:27] 8...a5 gains popularity. E16: Queen's Indian: 4 g3 Bb7 5 Bg2 Bb4+.} 9. Nb1 {[%emt 0:01:00]} Bd6 {[%emt 0:14:17]} 10. Nxc6 {[%emt 0:02:10]} Bxc6 {[%emt 0:00:06] [#]} 11. Nc3 $146 {[%emt 0:00:58]} ({Predecessor:} 11. Bg5 Be7 12. Nc3 Qd7 13. cxd5 Nxd5 14. Bxe7 Nxe7 15. Bxc6 Nxc6 16. e3 Rfd8 17. Qh5 {½-½ (40) Jacobson,B (2504)-Wang,J (2467) Saint Louis 2021}) 11... h6 {[%emt 0:03:10]} 12. cxd5 {[%emt 0:22:17]} exd5 {[%emt 0:00:20]} 13. Qb3 {[%emt 0:00:06][%cal Rc3d5]} Re8 {[%emt 0:01:52]} 14. Be3 {[%emt 0:00:29][%cal Rc3d5]} Bf8 {[%emt 0:02:16]} 15. Bf4 {[%emt 0:04:30]} Bd6 {[%emt 0:00:59]} 16. Be3 {[%emt 0:03:12][%cal Rc3d5]} Bf8 {[%emt 0:00:11]} 17. Bf4 {[%emt 0:11:00]} Bd6 {[%emt 0:00:23]} 18. Bxd6 {[%emt 0:00:24]} Qxd6 {[%emt 0:00:07]} 19. Rfc1 {[%emt 0:00:03]} Re7 {[%emt 0:07:17]} 20. a4 {[%emt 0:01:04]} a5 {[%emt 0:21:25]} 21. Nb5 {[%emt 0:08:35]} Bxb5 {[%emt 0:00:21]} 22. Qxb5 {[%emt 0:00:05]} Qb4 {[%emt 0:04:00]} 23. e3 {[%emt 0:16:19]} h5 {[%emt 0:05:18]} 24. Rc6 {[%emt 0:03:07]} Qxb5 {[%emt 0:02:32]} 25. axb5 {[%emt 0:00:01]} Ne4 {[%emt 0:00:25]} 26. Rc2 {[%emt 0:04:36]} g6 {[%emt 0:03:54]} 27. b4 {[%emt 0:02:51]} a4 {[%emt 0:00:11]} 28. Ra3 {[%emt 0:00:40]} Kg7 {[%emt 0:06:19]} 29. Rca2 {[%emt 0:04:24]} Rh8 {[%emt 0:00:27]} 30. Rc2 {[%emt 0:04:02]} ({But not} 30. Rxa4 Nc3 $15) 30... Ra8 {[%emt 0:01:34]} 31. Rca2 {[%emt 0:00:43]} Rh8 $1 {[%emt 0:00:06]} 32. Ra1 {[%emt 0:00:41]} ({Don't play} 32. Rxa4 Nc3 $15) 32... h4 {[%emt 0:12:33]} 33. Rxa4 {[%emt 0:02:16]} hxg3 {[%emt 0:00:06]} 34. hxg3 {[%emt 0:00:20]} Nc3 {[%emt 0:00:55][%csl LRa4,LRb5]} 35. Ra8 {[%emt 0:01:06]} Rxa8 {[%emt 0:00:53]} 36. Rxa8 $16 {[%emt 0:00:02][%mdl 4096] Endgame KRB-KRN} Rd7 {[%emt 0:00:13]} 37. Bf1 {[%emt 0:01:42]} Ne4 {[%emt 0:00:13]} 38. g4 {[%emt 0:00:59]} (38. Ra2 $142) 38... f5 {[%emt 0:01:46]} 39. gxf5 {[%emt 0:06:08]} gxf5 {[%emt 0:00:05][%cal Of5f4]} 40. Re8 {[%emt 0:00:00]} Kf6 {[%emt 0:00:00]} 41. Rf8+ {[%emt 0:10:13]} Rf7 {[%emt 0:15:10]} 42. Rg8 {[%emt 0:02:19]} Rg7+ {[%emt 0:00:40] The position is equal.} 43. Rxg7 {[%emt 0:00:04]} Kxg7 $11 {[%emt 0:00:03] KB-KN} 44. Kg2 {[%emt 0:00:55]} Kf6 {[%emt 0:01:17]} 45. Bd3 {[%emt 0:00:08]} Nc3 $1 {[%emt 0:04:37]} 46. Kg3 {[%emt 0:06:05]} Kg5 {[%emt 0:03:13]} 47. Kf3 {[%emt 0:00:52]} Na2 {[%emt 0:03:43]} 48. Bc2 {[%emt 0:00:13]} Nc3 {[%emt 0:00:30]} 49. Bd3 {[%emt 0:01:02]} Na2 {[%emt 0:00:06]} 50. Bc2 {[%emt 0:00:55]} Nc3 {[%emt 0:00:05] Weighted Error Value: White=0.11 (very precise) /Black=0.03 (flawless)} 1/2-1/2

[Event "3rd Avagyan Memorial 2022"]
[Site "Jermuk"]
[Date "2022.06.26"]
[Round "7.5"]
[White "Petrosyan, Manuel"]
[Black "Martirosyan, Haik M."]
[Result "1/2-1/2"]
[ECO "C11"]
[WhiteElo "2638"]
[BlackElo "2652"]
[Annotator "TA"]
[PlyCount "42"]
[EventDate "2022.06.20"]
[EventType "tourn"]
[EventCountry "ARM"]
[SourceTitle "playchess.com"]
[Source "ChessBase"]
[SourceQuality "1"]
[TimeControl "40/5400+30:1800+30"]

{[%evp 20,42,34,24,11,17,18,18,16,17,14,10,41,29,43,32,30,37,35,0,0,0,35,0,0]} 1. e4 {[%emt 0:00:28]} e6 {[%emt 0:00:38]} 2. d4 {[%emt 0:00:22]} d5 {[%emt 0:00:13]} 3. Nc3 {[%emt 0:00:24]} Nf6 {[%emt 0:01:07]} 4. e5 {[%emt 0:00:28]} Nfd7 {[%emt 0:00:13]} 5. f4 {[%emt 0:01:04]} c5 {[%emt 0:00:38]} 6. Nf3 {[%emt 0:00:20]} Nc6 {[%emt 0:00:20]} 7. Be3 {[%emt 0:00:24][%cal Bc1e3,Be3d4,Bd4f2,Bf2b6][%mdl 32]} cxd4 {[%emt 0:02:54]} 8. Nxd4 {[%emt 0:00:18]} Qb6 {[%emt 0:00:16]} 9. Qd2 {[%emt 0:02:29]} Qxb2 {[%emt 0:01:11]} 10. Rb1 {[%emt 0:00:12]} Qa3 {[%emt 0:00:07]} 11. Bb5 $1 {[%emt 0:02:41]} Nxd4 {[%emt 0:01:09] C11: French: Classical System: 4 e5 and 4 Bg5 dxe4.} 12. Bxd4 {[%emt 0:00:20] Rb3 is the strong threat.} ({Much worse is} 12. Qxd4 a6 13. Bxd7+ Bxd7 14. Rxb7 Rc8 $17) 12... a6 {[%emt 0:00:23]} 13. Bxd7+ {[%emt 0:00:24]} Bxd7 {[%emt 0:00:13]} 14. Rb3 {[%emt 0:00:37]} Qe7 {[%emt 0:00:28]} 15. Rxb7 {[%emt 0:00:18]} Qh4+ {[%emt 0:01:28] seems to push 15...Rc8 aside.} 16. Bf2 {[%emt 0:04:59]} Qd8 {[%emt 0:00:36]} 17. Bb6 {[%emt 0:00:39]} Qc8 {[%emt 0:00:38]} 18. Rc7 {[%emt 0:00:22]} Qd8 {[%emt 0:00:15][%cal Of8c5] [#]} 19. Rb7 $146 {[%emt 0:04:11]} (19. Qd4 $5 {[%cal Rf4f5]}) ({Predecessor:} 19. Qd4 Ba3 20. Nb1 Be7 21. c4 O-O 22. cxd5 exd5 23. Nc3 Rc8 24. Rxc8 Qxc8 25. O-O Qc6 26. Nxd5 Ba3 27. Rf3 Qc1+ 28. Rf1 Qc6 29. Rf3 Qc1+ 30. Rf1 Qc6 {½-½ (30) So,W (2778)-Grischuk,A (2742) Chess.com INT 2022}) 19... Qc8 {[%emt 0:00:20]} 20. Rc7 {[%emt 0:00:08]} Qd8 {[%emt 0:00:08]} 21. Rb7 {[%emt 0:00:33]} (21. Qd4 $5 {[%cal Rf4f5]}) 21... Qc8 {[%emt 0:00:17] Weighted Error Value: White=0.09 (flawless) /Black=0.04 (flawless)} 1/2-1/2

[Event "3rd Avagyan Memorial 2022"]
[Site "Jermuk"]
[Date "2022.06.27"]
[Round "8.1"]
[White "Niemann, Hans Moke"]
[Black "Martirosyan, Haik M."]
[Result "1-0"]
[ECO "C54"]
[WhiteElo "2656"]
[BlackElo "2652"]
[Annotator "TA"]
[PlyCount "119"]
[EventDate "2022.06.20"]
[EventType "tourn"]
[EventCountry "ARM"]
[SourceTitle "playchess.com"]
[Source "ChessBase"]
[SourceQuality "1"]
[TimeControl "40/5400+30:1800+30"]

{[%evp 12,119,29,9,21,11,22,20,16,17,18,5,20,9,10,2,7,0,0,-10,29,39,39,41,55,39,37,40,45,31,67,73,80,75,70,51,50,50,52,52,52,54,48,49,49,49,41,26,66,62,79,66,57,59,63,58,59,60,86,77,74,77,91,92,95,98,100,102,174,157,193,193,193,195,191,142,142,139,252,245,252,252,239,239,287,266,329,336,328,315,314,250,467,464,609,574,681,677,641,629,29953,29951,5222,5359,29979,29980,29980,29981,29980,11551]} 1. e4 {[%emt 0:01:52]} e5 {[%emt 0:00:08]} 2. Nf3 {[%emt 0:00:33]} Nc6 {[%emt 0:00:08]} 3. Bc4 {[%emt 0:00:12]} Bc5 {[%emt 0:00:11]} 4. c3 {[%emt 0:01:22]} Nf6 {[%emt 0:00:17]} 5. d3 {[%emt 0:00:06]} d6 {[%emt 0:00:21]} 6. O-O {[%emt 0:00:14]} h6 {[%emt 0:00:33]} 7. Re1 {[%emt 0:00:30]} O-O {[%emt 0:01:08] C54: Giuoco Piano: 4 c3 Nf6, main lines with 5 d4 and 5 d3.} 8. Nbd2 {[%emt 0:00:09]} a5 {[%emt 0:00:19][%cal Ba7a5,Ba5a4,Ba4a3][%mdl 32]} 9. Nf1 {[%emt 0:00:14]} a4 {[%emt 0:01:58] The position is equal.} 10. Bb5 {[%emt 0:04:02]} a3 {[%emt 0:00:41]} 11. b4 {[%emt 0:00:05]} Bb6 {[%emt 0:00:05]} 12. Ng3 {[%emt 0:00:17]} Ne7 {[%emt 0:01:05]} 13. d4 {[%emt 0:00:08]} Ng6 {[%emt 0:01:07]} 14. Bd3 {[%emt 0:05:09]} Bg4 {[%emt 0:04:18]} 15. d5 {[%emt 0:00:22] [#]} Nh5 $146 {[%emt 0:12:19]} ({Predecessor:} 15... Nh7 16. h3 Bd7 17. Nf5 Ne7 18. Nxe7+ Qxe7 19. c4 f5 20. c5 dxc5 21. exf5 cxb4 22. Rxe5 {½-½ (45) Kahl,F (2407)-Enev,Z (2331) LSS email 2020}) 16. h3 {[%emt 0:14:42]} Bxf3 {[%emt 0:02:51]} 17. Qxf3 {[%emt 0:00:16]} Nhf4 {[%emt 0:04:45] And now ...Nh4 would win.} 18. Nf5 {[%emt 0:02:20]} Nh4 {[%emt 0:07:58]} 19. Nxh4 {[%emt 0:00:16]} Qxh4 {[%emt 0:00:26]} 20. Bf1 {[%emt 0:04:17]} f5 {[%emt 0:01:41]} 21. Bxf4 {[%emt 0:01:20]} Qxf4 {[%emt 0:05:01]} 22. Qxf4 {[%emt 0:00:12]} exf4 {[%emt 0:00:02]} 23. e5 {[%emt 0:00:07]} dxe5 {[%emt 0:08:30]} 24. Rxe5 {[%emt 0:00:14]} Rae8 {[%emt 0:00:06]} 25. Rae1 {[%emt 0:00:59]} Rxe5 {[%emt 0:00:13]} 26. Rxe5 $14 {[%emt 0:00:08][%mdl 4096] Endgame KRB-KRB} Rf6 {[%emt 0:06:16]} 27. Bd3 {[%emt 0:11:57]} g6 {[%emt 0:00:38]} 28. Re8+ {[%emt 0:00:33]} Rf8 $1 {[%emt 0:03:54]} 29. Re7 {[%emt 0:00:21][%cal Od5d6]} Rf7 {[%emt 0:03:57]} 30. Re6 {[%emt 0:00:09]} Kg7 {[%emt 0:00:02]} 31. Bb5 {[%emt 0:00:20]} Rf6 {[%emt 0:01:02]} 32. Re7+ {[%emt 0:00:11]} Rf7 {[%emt 0:01:43]} 33. Re2 {[%emt 0:09:36]} Rf6 {[%emt 0:01:42]} 34. Ba4 {[%emt 0:02:52]} g5 {[%emt 0:04:30]} 35. Re7+ {[%emt 0:07:25]} Rf7 {[%emt 0:01:40]} 36. Re5 {[%emt 0:01:24]} g4 {[%emt 0:05:56]} 37. Be8 {[%emt 0:00:43]} Rf6 {[%emt 0:01:02] [#]} 38. Bh5 $1 {[%emt 0:02:33]} g3 {[%emt 0:04:01]} 39. Kf1 {[%emt 0:00:39]} c5 {[%emt 0:06:56]} (39... Rd6 $16) 40. fxg3 $18 {[%emt 0:00:00]} cxb4 {[%emt 0:00:00]} 41. cxb4 {[%emt 0:06:40]} fxg3 {[%emt 0:05:10]} 42. Re7+ {[%emt 0:00:07]} Kf8 {[%emt 0:00:44]} 43. Rxb7 {[%emt 0:00:08]} (43. Re8+ $18 Kg7 44. Re7+ Kf8 45. Rxb7) 43... Bd4 $16 {[%emt 0:05:01]} 44. Ke2 {[%emt 0:03:20]} Rd6 {[%emt 0:05:38]} (44... Rb6 $16 45. Rf7+ Kg8) 45. Rf7+ $18 {[%emt 0:01:47]} Kg8 {[%emt 0:00:28]} 46. Rxf5 {[%emt 0:00:07]} Rb6 {[%emt 0:00:11]} 47. Rf3 {[%emt 0:00:16][%csl LRa3,LRg3]} Be5 {[%emt 0:03:47]} 48. Rb3 {[%emt 0:00:23]} (48. Rxa3 Rxb4 49. Ra8+ Kg7 $18) 48... Rb5 {[%emt 0:04:57]} 49. Kd3 {[%emt 0:00:07]} (49. Rxa3 Rxb4 50. Bf3 Rf4 51. Ra8+ Kg7 $18) 49... Bd6 {[%emt 0:00:51]} 50. Kc4 {[%emt 0:00:06]} Rb8 {[%emt 0:00:24]} 51. b5 {[%emt 0:01:05] Threatens to win with b6.} (51. Rxa3 Rxb4+ 52. Kc3 Rc4+ 53. Kxc4 Bxa3 $18) 51... Rc8+ $2 {[%emt 0:00:38] [#]} (51... Rf8 52. Re3 Rf2) 52. Kd3 $1 {[%emt 0:00:08]} Kf8 {[%emt 0:00:25]} 53. b6 {[%emt 0:01:53]} Ke7 {[%emt 0:00:05]} 54. b7 {[%emt 0:00:27]} Rf8 {[%emt 0:00:03]} 55. Bg4 {[%emt 0:01:07]} Rf2 {[%emt 0:02:00]} 56. b8=Q {[%emt 0:00:40]} Bxb8 {[%emt 0:00:05]} 57. Rxb8 {[%emt 0:00:05] Rb6 would kill now.} Rxg2 {[%emt 0:00:29]} 58. Rb6 {[%emt 0:00:32] White mates.} Rb2 {[%emt 0:01:39]} 59. d6+ {[%emt 0:00:11][%cal Bd5d6,Bd6d7][%mdl 32]} Kf7 {[%emt 0:00:44]} 60. d7 {[%emt 0:00:12] Weighted Error Value: White=0.05 (flawless) /Black=0.42} ({Worse is} 60. Ra6 g2 61. Bh5+ (61. Ra7+ $2 Kf6 $19) 61... Ke6 62. d7+ (62. Bg4+ $2 Ke5 $19) 62... Kxd7 $17) 1-0

[Event "3rd Avagyan Memorial 2022"]
[Site "Jermuk"]
[Date "2022.06.27"]
[Round "8.2"]
[White "Sargsyan, Shant"]
[Black "Petrosyan, Manuel"]
[Result "1-0"]
[ECO "E20"]
[WhiteElo "2641"]
[BlackElo "2638"]
[Annotator "TA"]
[PlyCount "51"]
[EventDate "2022.06.20"]
[EventType "tourn"]
[EventCountry "ARM"]
[SourceTitle "playchess.com"]
[Source "ChessBase"]
[SourceQuality "1"]
[TimeControl "40/5400+30:1800+30"]

{[%evp 9,51,27,20,-27,12,-11,0,-18,23,0,0,0,0,0,0,0,0,0,0,0,0,0,73,79,162,163,170,162,169,144,531,522,648,509,675,424,690,301,1441,1412,29967,7042,5926,3356]} 1. d4 {[%emt 0:02:49][%cal Bd2d4,Bd4d5][%mdl 32]} Nf6 {[%emt 0:00:39]} 2. c4 {[%emt 0:00:07]} e6 {[%emt 0:00:07]} 3. Nc3 {[%emt 0:00:11]} Bb4 {[%emt 0:00:42]} 4. f3 {[%emt 0:00:13]} c5 {[%emt 0:01:29]} 5. d5 {[%emt 0:00:14]} b5 {[%emt 0:00:12]} 6. e4 {[%emt 0:00:09] E20: Nimzo-Indian: 4 g3 and 4 f3.} d6 {[%emt 0:00:25] is currently scoring better than 6...bxc4.} 7. Nge2 {[%emt 0:00:20]} bxc4 {[%emt 0:05:50] next ...exd5 is good for Black.} 8. Nf4 {[%emt 0:00:11] The position is equal.} g5 {[%emt 0:00:50]} (8... e5 $5 9. Nfe2 Ba6 $11) 9. Nfe2 {[%emt 0:00:39]} exd5 {[%emt 0:00:12]} 10. exd5 {[%emt 0:00:29]} Qe7 {[%emt 0:02:02]} 11. Bxg5 {[%emt 0:00:25] [#] And now Qd2 would win.} Bxc3+ {[%emt 0:00:14]} 12. bxc3 {[%emt 0:00:03]} Nbd7 $1 {[%emt 0:00:15]} 13. Qd2 {[%emt 0:01:12] Threatens to win with 0-0-0.} Rg8 $1 {[%emt 0:23:04][%cal Og8g5] ...Rxg5! is the strong threat.} 14. h4 {[%emt 0:00:19]} Ne5 {[%emt 0:00:15]} 15. Kf2 {[%emt 0:02:12] [#] aiming for Ng3.} Nd3+ $146 {[%emt 0:03:21] Pair of Knights!} (15... h6 $11 16. Bxh6 Nh5) ({Predecessor:} 15... h6 16. Bxh6 Nh5 17. Rh2 Nd3+ {½-½ (17) Yeo,G (2482)-Beecham,C (2478) ICCF email 2020}) 16. Kg1 $16 {[%emt 0:00:41] Strongly threatening Ng3.} Ne5 {[%emt 0:00:21]} (16... Rb8 $16) 17. Ng3 $18 {[%emt 0:08:22][%cal Be2g3,Bg3e4,Be4c5][%mdl 32] Hoping for f4.} h6 {[%emt 0:04:59]} 18. f4 {[%emt 0:00:33]} hxg5 {[%emt 0:13:06]} 19. fxe5 {[%emt 0:00:24]} dxe5 {[%emt 0:14:55][%mdl 8192] This move loses the game for Black.} (19... Qxe5 $2 20. Re1 Ng4 21. Rxe5+ $18) (19... Ng4 $16 {is more resistant.}) 20. hxg5 {[%emt 0:02:11]} Ng4 {[%emt 0:01:23]} 21. d6 {[%emt 0:05:25]} Qe6 {[%emt 0:03:58]} 22. Ne4 {[%emt 0:03:16]} Qf5 {[%emt 0:00:11]} (22... Bb7 $142) 23. Bxc4 {[%emt 0:10:50]} Bb7 $2 {[%emt 0:06:00]} (23... Qxe4 24. Bd5 Qf4 25. Qxf4 exf4) 24. Nxc5 {[%emt 0:07:46]} Bxg2 {[%emt 0:05:22]} 25. Qxg2 {[%emt 0:00:30]} Rb8 {[%emt 0:00:08]} 26. Rf1 {[%emt 0:00:27] Weighted Error Value: White=0.46/Black=1.04} 1-0